[Event "22nd Hogeschool Zeeland 2018"]
[Site "Vlissingen"]
[Date "2018.08.05"]
[Round "2"]
[White "Hoffman, Ron"]
[Black "Schoppen, Casper"]
[Result "0-1"]
[ECO "D02"]
[WhiteElo "2041"]
[BlackElo "2395"]
[Annotator "ChessBase"]
[PlyCount "64"]
[EventDate "2018.08.04"]
[EventType "swiss"]
[EventCountry "NED"]
[SourceTitle "playchess.com"]
[Source "ChessBase"]
[SourceQuality "1"]
[TimeControl "40/5400+30:1800+30"]

1. d4 {[%emt 0:00:10]} Nf6 {[%emt 0:00:00]} 2. Bf4 {[%emt 0:00:25]} e6 {[%emt 0:00:57]} 3. e3 {[%emt 0:00:29]} d5 {[%emt 0:00:33]} 4. c3 {[%emt 0:00:31]} Bd6 {[%emt 0:00:28]} 5. Bg3 {[%emt 0:00:16]} c5 {[%emt 0:02:32]} 6. Nd2 {[%emt 0:02:21]} O-O {[%emt 0:01:20]} 7. Bd3 {[%emt 0:01:22]} Nc6 {[%emt 0:01:48]} 8. Ngf3 {[%emt 0:00:55]} c4 {[%emt 0:04:00]} 9. Bc2 {[%emt 0:00:24]} b5 {[%emt 0:01:02]} 10. Qe2 {[%emt 0:07:55]} Bb7 {[%emt 0:09:41]} 11. Ne5 {[%emt 0:06:26]} b4 {[%emt 0:07:39]} 12. e4 {[%emt 0:06:57]} Be7 {[%emt 0:18:14]} 13. Nxc6 {[%emt 0:12:45]} Bxc6 {[%emt 0:00:34]} 14. e5 {[%emt 0:00:09]} Nd7 {[%emt 0:01:15]} 15. Qh5 {[%emt 0:14:45]} g6 {[%emt 0:02:28]} 16. Qe2 {[%emt 0:03:18]} bxc3 {[%emt 0:04:44]} 17. bxc3 {[%emt 0:00:11]} Qa5 {[%emt 0:00:29]} 18. Qe3 {[%emt 0:08:11]} Ba4 {[%emt 0:02:50]} 19. Bxa4 {[%emt 0:00:55]} Qxa4 {[%emt 0:00:06]} 20. h4 {[%emt 0:00:29]} Qc2 {[%emt 0:12:33]} 21. h5 {[%emt 0:03:49]} g5 {[%emt 0:01:15]} 22. Ke2 {[%emt 0:07:18]} Rab8 {[%emt 0:01:54]} 23. Rac1 {[%emt 0:03:08]} Qf5 {[%emt 0:01:32]} 24. Rb1 {[%emt 0:01:15]} h6 {[%emt 0:07:43]} 25. f3 {[%emt 0:01:52]} Ba3 {[%emt 0:02:06]} 26. Bh2 {[%emt 0:03:16]} Nb6 {[%emt 0:01:22]} 27. g4 {[%emt 0:03:51]} Qc2 {[%emt 0:00:58]} 28. f4 {[%emt 0:01:26]} Na4 {[%emt 0:01:37]} 29. Kf3 {[%emt 0:08:10]} Nxc3 {[%emt 0:01:35]} 30. fxg5 {[%emt 0:00:14]} Nxb1 {[%emt 0:01:03]} 31. Rxb1 {[%emt 0:01:06]} Rxb1 {[%emt 0:00:21]} 32. Nxb1 {[%emt 0:00:48]} Bc1 {[%emt 0:01:19]} 0-1

[Event "22nd Hogeschool Zeeland 2018"]
[Site "Vlissingen"]
[Date "2018.08.05"]
[Round "2"]
[White "Wagenvoorde, Guido"]
[Black "Gonzales, Jayson"]
[Result "0-1"]
[ECO "A55"]
[WhiteElo "2035"]
[BlackElo "2383"]
[Annotator "NA"]
[PlyCount "110"]
[EventDate "2018.08.04"]
[EventType "swiss"]
[EventCountry "NED"]
[SourceTitle "playchess.com"]
[Source "ChessBase"]
[SourceQuality "1"]
[TimeControl "40/5400+30:1800+30"]

1. d4 {[%emt 0:00:00]} d6 {[%emt 0:00:56]} 2. c4 {[%emt 0:00:00]} e5 {[%emt 0:00:35]} 3. Nf3 {[%emt 0:01:38]} Nd7 {[%emt 0:01:58]} 4. Nc3 {[%emt 0:00:17]} Ngf6 {[%emt 0:00:31]} 5. e4 {[%emt 0:00:32]} Be7 {[%emt 0:00:40]} 6. Be2 {[%emt 0:00:55]} c6 {[%emt 0:01:32]} 7. O-O {[%emt 0:00:50]} O-O {[%emt 0:00:46]} 8. h3 {[%emt 0:02:23]} a6 {[%emt 0:11:36]} 9. Qc2 {[%emt 0:10:15]} Re8 {[%emt 0:06:36] A55: Old Indian Defence with Nf3 and e4} (9... Qc7 10. Be3 b6 11. Rac1 Re8 12. Nd2 exd4 13. Bxd4 Bb7 14. f4 c5 15. Bf2 Bf8 16. Rce1 Nb8 17. Bf3 {1-0 (42) Fodor,T (2462)-Drazic,S (2433) Pula 2014}) 10. d5 {[%emt 0:07:11]} cxd5 {[%emt 0:02:39]} 11. cxd5 {[%emt 0:00:10]} b5 $146 {[%emt 0:00:31]} ({Predecessor:} 11... Nf8 12. Be3 Bd7 13. a4 Qc8 14. Rfc1 Ng6 15. Bf1 Nh5 16. Qb3 Qb8 17. a5 {1-0 (36) Barbosa,P (2254)-Chaves,J (2009) Natal 2011}) 12. b4 {[%emt 0:00:39]} Nb6 {[%emt 0:15:04]} 13. a4 {[%emt 0:11:36]} bxa4 {[%emt 0:00:41]} 14. Nxa4 {[%emt 0:00:28]} Bd7 {[%emt 0:00:05]} 15. Nc3 {[%emt 0:03:45]} Qc7 {[%emt 0:14:51]} 16. Nd2 {[%emt 0:04:09]} Rec8 {[%emt 0:08:25]} 17. Bb2 {[%emt 0:00:27]} Qb7 {[%emt 0:01:23]} 18. Qd3 {[%emt 0:05:17]} a5 {[%emt 0:09:07]} 19. bxa5 {[%emt 0:04:45]} Nbxd5 {[%emt 0:01:28]} 20. Nxd5 {[%emt 0:00:50]} Nxd5 {[%emt 0:00:03]} 21. Qxd5 {[%emt 0:01:14]} Qxb2 {[%emt 0:00:57]} 22. Rfb1 {[%emt 0:07:08]} Qc3 {[%emt 0:01:22]} 23. a6 {[%emt 0:09:54]} Be6 {[%emt 0:05:25]} 24. Qd3 {[%emt 0:00:06]} Qc5 {[%emt 0:00:44]} 25. Nf1 {[%emt 0:09:02]} Bd8 {[%emt 0:05:06]} 26. Ne3 {[%emt 0:06:02]} Bb6 {[%emt 0:01:06]} 27. Bg4 {[%emt 0:01:21]} Qd4 {[%emt 0:03:29]} 28. Qb5 {[%emt 0:04:01]} Rc5 {[%emt 0:03:10]} 29. Qb2 {[%emt 0:06:05]} Rc7 {[%emt 0:01:46]} 30. Bxe6 {[%emt 0:00:11]} fxe6 {[%emt 0:00:03]} 31. Qa2 {[%emt 0:02:20]} Kf7 {[%emt 0:00:55]} 32. Rd1 {[%emt 0:00:22]} Qc5 {[%emt 0:00:49]} 33. Qe2 {[%emt 0:01:11]} Qc6 {[%emt 0:00:54]} 34. Qf3+ {[%emt 0:00:41]} Kg8 {[%emt 0:00:09]} 35. Qg4 {[%emt 0:00:26]} Re7 {[%emt 0:00:32]} 36. Rac1 {[%emt 0:00:42]} Bc5 {[%emt 0:00:08]} 37. Nc4 {[%emt 0:00:49]} Qxa6 {[%emt 0:01:05]} 38. Rc2 {[%emt 0:00:37]} Bd4 {[%emt 0:00:37]} 39. Rdc1 {[%emt 0:00:31]} Rf8 {[%emt 0:00:21]} 40. Qg3 {[%emt 0:00:33]} Ref7 {[%emt 0:00:37]} 41. Rf1 {[%emt 0:06:51]} Rf4 {[%emt 0:03:09]} 42. Qb3 {[%emt 0:02:43]} Kh8 {[%emt 0:07:51]} 43. Nb2 $17 {[%emt 0:04:16]} R4f6 {[%emt 0:04:07]} 44. Nd3 {[%emt 0:01:28]} h6 {[%emt 0:00:46]} 45. Qc4 {[%emt 0:10:20]} Qa8 {[%emt 0:04:06]} 46. Qc6 {[%emt 0:00:43]} Qa3 {[%emt 0:00:08]} 47. Qb5 {[%emt 0:02:27]} d5 {[%emt 0:07:34]} 48. exd5 {[%emt 0:00:43]} e4 {[%emt 0:00:03]} 49. Nc5 {[%emt 0:02:12]} Rxf2 {[%emt 0:04:35]} 50. Rfxf2 {[%emt 0:00:33]} Rxf2 {[%emt 0:00:17]} 51. Rxf2 {[%emt 0:01:43]} Qc1+ {[%emt 0:00:16]} 52. Qf1 {[%emt 0:01:15]} Bxf2+ {[%emt 0:00:14]} 53. Kxf2 {[%emt 0:00:09]} Qxc5+ {[%emt 0:00:07]} 54. Kg3 {[%emt 0:00:47]} Qd6+ {[%emt 0:00:26]} 55. Kf2 {[%emt 0:00:49]} Qf4+ {[%emt 0:00:13]} 0-1

[Event "22nd Hogeschool Zeeland 2018"]
[Site "Vlissingen"]
[Date "2018.08.05"]
[Round "2"]
[White "Hng, Mei-En Emmanuelle"]
[Black "Miciano, John Marvin"]
[Result "0-1"]
[ECO "B08"]
[WhiteElo "2024"]
[BlackElo "2381"]
[Annotator "NA"]
[PlyCount "78"]
[EventDate "2018.08.04"]
[EventType "swiss"]
[EventCountry "NED"]
[SourceTitle "playchess.com"]
[Source "ChessBase"]
[SourceQuality "1"]
[TimeControl "40/5400+30:1800+30"]

1. e4 {[%emt 0:00:00]} d6 {[%emt 0:00:02]} 2. d4 {[%emt 0:00:00]} Nf6 {[%emt 0:00:11]} 3. Nc3 {[%emt 0:00:31]} g6 {[%emt 0:00:14]} 4. Be2 {[%emt 0:01:55]} Bg7 {[%emt 0:00:36]} 5. h3 {[%emt 0:01:47]} c6 {[%emt 0:01:32]} 6. Nf3 {[%emt 0:03:46]} O-O {[%emt 0:00:30]} 7. Be3 {[%emt 0:06:00]} b5 {[%emt 0:02:23]} 8. a3 {[%emt 0:02:33]} Nbd7 {[%emt 0:00:46]} 9. Qd2 {[%emt 0:04:37]} Qc7 {[%emt 0:04:40]} 10. Bh6 {[%emt 0:15:15]} a6 {[%emt 0:02:44]} 11. O-O {[%emt 0:04:51]} Bb7 {[%emt 0:02:05]} 12. Rad1 {[%emt 0:06:36]} c5 {[%emt 0:06:38]} 13. Bxg7 {[%emt 0:06:23]} Kxg7 {[%emt 0:00:18]} 14. Qe3 {[%emt 0:06:53]} b4 {[%emt 0:03:21]} 15. e5 {[%emt 0:11:51]} bxc3 {[%emt 0:09:51]} 16. exf6+ {[%emt 0:00:18]} Nxf6 {[%emt 0:00:15]} 17. Qxc3 {[%emt 0:01:02]} Nd5 {[%emt 0:05:39]} 18. Qd2 {[%emt 0:04:42]} c4 {[%emt 0:01:05]} 19. c3 {[%emt 0:05:03]} Nf6 {[%emt 0:04:34]} 20. Qe3 {[%emt 0:04:10]} Rab8 {[%emt 0:02:44]} 21. Nd2 {[%emt 0:03:16]} Bd5 {[%emt 0:02:30]} 22. Rb1 {[%emt 0:04:02]} Qc6 {[%emt 0:06:10]} 23. f3 {[%emt 0:01:13]} Be6 {[%emt 0:01:36]} 24. Qf2 {[%emt 0:01:12]} Rb7 {[%emt 0:05:07]} 25. b4 {[%emt 0:01:06]} cxb3 {[%emt 0:00:07]} 26. c4 {[%emt 0:00:10]} Qa4 {[%emt 0:00:05]} 27. Qe3 {[%emt 0:01:43]} Rfb8 {[%emt 0:02:23]} 28. Rb2 {[%emt 0:01:23]} Qxa3 {[%emt 0:02:02]} 29. Rfb1 {[%emt 0:00:19]} Bf5 {[%emt 0:00:07]} 30. Ne4 {[%emt 0:00:57]} d5 {[%emt 0:03:09]} 31. g4 {[%emt 0:01:00]} Bxe4 {[%emt 0:01:20]} 32. fxe4 {[%emt 0:00:13]} Nxe4 {[%emt 0:00:34]} 33. Bd1 {[%emt 0:01:03]} e6 {[%emt 0:05:11]} 34. cxd5 {[%emt 0:00:36]} exd5 {[%emt 0:00:09]} 35. Rxb3 {[%emt 0:00:24]} Rxb3 {[%emt 0:00:10]} 36. Rxb3 {[%emt 0:00:11]} Rxb3 {[%emt 0:00:14]} 37. Qxb3 {[%emt 0:00:41]} Qc1 {[%emt 0:01:49]} 38. Kg2 {[%emt 0:00:46]} Qd2+ {[%emt 0:00:08]} 39. Kg1 {[%emt 0:00:24]} Qf2+ {[%emt 0:26:31]} 0-1

[Event "22nd Hogeschool Zeeland 2018"]
[Site "Vlissingen"]
[Date "2018.08.05"]
[Round "2"]
[White "Unander, Matts"]
[Black "Ravi, Teja S."]
[Result "0-1"]
[ECO "D00"]
[WhiteElo "2010"]
[BlackElo "2374"]
[Annotator "NA"]
[PlyCount "62"]
[EventDate "2018.08.04"]
[EventType "swiss"]
[EventCountry "NED"]
[SourceTitle "playchess.com"]
[Source "ChessBase"]
[SourceQuality "1"]
[TimeControl "40/5400+30:1800+30"]

1. d4 {[%emt 0:00:00]} d5 {[%emt 0:00:23]} 2. Nf3 {[%emt 0:00:13]} Nf6 {[%emt 0:00:27]} 3. g3 {[%emt 0:01:14]} Bg4 {[%emt 0:01:18]} 4. Bg2 {[%emt 0:01:14]} c6 {[%emt 0:00:28]} 5. Nbd2 {[%emt 0:03:30]} e6 {[%emt 0:01:08]} 6. O-O {[%emt 0:01:16]} Nbd7 {[%emt 0:00:44]} 7. c4 {[%emt 0:00:36]} Be7 {[%emt 0:00:22]} 8. b3 {[%emt 0:01:06]} O-O {[%emt 0:00:29]} 9. Bb2 {[%emt 0:00:28]} a5 {[%emt 0:00:33]} 10. a3 {[%emt 0:08:02]} h6 {[%emt 0:04:47]} 11. Re1 {[%emt 0:06:48]} Qb6 {[%emt 0:04:15]} 12. c5 {[%emt 0:05:15]} Qc7 {[%emt 0:03:45]} 13. b4 {[%emt 0:03:56]} Bf5 {[%emt 0:03:04]} 14. Ne5 {[%emt 0:04:34]} b6 {[%emt 0:10:02]} 15. f4 {[%emt 0:08:08]} bxc5 {[%emt 0:05:25]} 16. bxc5 {[%emt 0:01:33]} a4 {[%emt 0:11:14]} 17. Bc3 {[%emt 0:01:55]} Rfd8 {[%emt 0:03:22]} 18. h3 {[%emt 0:09:07]} Bh7 {[%emt 0:10:35]} 19. e3 {[%emt 0:01:27]} Nxe5 {[%emt 0:01:39]} 20. fxe5 {[%emt 0:00:22]} Nd7 {[%emt 0:00:07]} 21. Qf3 {[%emt 0:09:48]} f6 {[%emt 0:06:03]} 22. exf6 {[%emt 0:03:21]} Bxf6 {[%emt 0:04:29]} 23. e4 {[%emt 0:05:28]} Rf8 {[%emt 0:08:07]} 24. Qg4 {[%emt 0:02:47]} Rae8 {[%emt 0:01:05]} 25. e5 {[%emt 0:01:56]} Bg5 {[%emt 0:01:09]} 26. Qd1 {[%emt 0:01:50]} Qa7 {[%emt 0:00:07]} 27. Nf3 {[%emt 0:00:56]} Bd8 {[%emt 0:00:42]} 28. Kh2 {[%emt 0:01:26]} Rf7 {[%emt 0:03:13]} 29. Rf1 {[%emt 0:03:08]} Ref8 {[%emt 0:00:26]} 30. Qd2 {[%emt 0:01:03]} Qa6 {[%emt 0:02:05]} 31. Ng1 {[%emt 0:08:02]} Rxf1 {[%emt 0:13:57]} 0-1

[Event "22nd Hogeschool Zeeland 2018"]
[Site "Vlissingen"]
[Date "2018.08.05"]
[Round "3"]
[White "Schoppen, Casper"]
[Black "Van den Berg, Bram"]
[Result "1-0"]
[ECO "B01"]
[WhiteElo "2395"]
[BlackElo "2221"]
[Annotator "ChessBase"]
[PlyCount "67"]
[EventDate "2018.08.04"]
[EventType "swiss"]
[EventCountry "NED"]
[SourceTitle "playchess.com"]
[Source "ChessBase"]
[SourceQuality "1"]
[TimeControl "40/5400+30:1800+30"]

1. e4 {[%emt 0:06:08]} d5 {[%emt 0:00:00]} 2. exd5 {[%emt 0:00:10]} Nf6 {[%emt 0:00:00]} 3. d4 {[%emt 0:01:46]} Bg4 {[%emt 0:00:00]} 4. Be2 {[%emt 0:01:02]} Bxe2 {[%emt 0:02:52]} 5. Qxe2 {[%emt 0:00:16]} Qxd5 {[%emt 0:00:07]} 6. Nf3 {[%emt 0:00:09]} e6 {[%emt 0:00:18]} 7. O-O {[%emt 0:00:41]} Nc6 {[%emt 0:00:26]} 8. Rd1 {[%emt 0:03:00]} O-O-O {[%emt 0:09:25]} 9. c4 {[%emt 0:04:23]} Qh5 {[%emt 0:00:56]} 10. Nc3 {[%emt 0:00:42]} Rg8 {[%emt 0:01:54]} 11. d5 {[%emt 0:41:37]} exd5 {[%emt 0:13:20]} 12. cxd5 {[%emt 0:00:49]} Nb4 {[%emt 0:00:42]} 13. Bf4 {[%emt 0:04:57]} Nbxd5 {[%emt 0:10:44]} 14. Nxd5 {[%emt 0:02:50]} Nxd5 {[%emt 0:04:05]} 15. Bg5 {[%emt 0:02:44]} Bd6 {[%emt 0:04:34]} 16. Bxd8 {[%emt 0:04:58]} Bxh2+ {[%emt 0:00:34]} 17. Kf1 {[%emt 0:00:08]} Rxd8 {[%emt 0:00:05]} 18. Rd4 {[%emt 0:06:48]} Bd6 {[%emt 0:02:28]} 19. Rh4 {[%emt 0:00:42]} Qg6 {[%emt 0:00:09]} 20. g3 {[%emt 0:00:45]} c6 {[%emt 0:04:26]} 21. Re1 {[%emt 0:02:42]} h6 {[%emt 0:01:14]} 22. Re4 {[%emt 0:03:18]} Kc7 {[%emt 0:03:52]} 23. Re8 {[%emt 0:04:45]} Rxe8 {[%emt 0:02:25]} 24. Qxe8 {[%emt 0:00:06]} Qf6 {[%emt 0:00:08]} 25. Ne5 {[%emt 0:01:41]} Bxe5 {[%emt 0:02:21]} 26. Rxe5 {[%emt 0:00:22]} g6 {[%emt 0:03:54]} 27. b4 {[%emt 0:02:38]} a6 {[%emt 0:03:25]} 28. a4 {[%emt 0:00:36]} h5 {[%emt 0:01:59]} 29. Re4 {[%emt 0:01:53]} Qf3 {[%emt 0:02:37]} 30. Kg1 {[%emt 0:00:23]} Qf5 {[%emt 0:03:46]} 31. b5 {[%emt 0:00:54]} axb5 {[%emt 0:00:21]} 32. axb5 {[%emt 0:00:05]} Qd7 {[%emt 0:05:13]} 33. b6+ {[%emt 0:00:13]} Kd6 {[%emt 0:00:05]} 34. Qf8+ {[%emt 0:00:18]} 1-0

[Event "22nd Hogeschool Zeeland 2018"]
[Site "Vlissingen"]
[Date "2018.08.05"]
[Round "3"]
[White "Gonzales, Jayson"]
[Black "Sparenberg, Erik"]
[Result "1/2-1/2"]
[ECO "E90"]
[WhiteElo "2383"]
[BlackElo "2173"]
[Annotator "ChessBase"]
[PlyCount "60"]
[EventDate "2018.08.04"]
[EventType "swiss"]
[EventCountry "NED"]
[SourceTitle "playchess.com"]
[Source "ChessBase"]
[SourceQuality "1"]
[TimeControl "40/5400+30:1800+30"]

1. Nf3 {[%emt 0:00:11]} Nf6 {[%emt 0:00:00]} 2. c4 {[%emt 0:00:15]} g6 {[%emt 0:00:00]} 3. Nc3 {[%emt 0:01:48]} Bg7 {[%emt 0:00:00]} 4. e4 {[%emt 0:00:14]} d6 {[%emt 0:00:00]} 5. d4 {[%emt 0:00:15]} O-O {[%emt 0:00:00]} 6. h3 {[%emt 0:00:14]} e5 {[%emt 0:04:22]} 7. d5 {[%emt 0:00:45]} Na6 {[%emt 0:07:17]} 8. Bg5 {[%emt 0:03:52]} h6 {[%emt 0:00:53]} 9. Be3 {[%emt 0:01:14]} Nc5 {[%emt 0:05:59]} 10. Nd2 {[%emt 0:01:55]} a5 {[%emt 0:06:39]} 11. g4 {[%emt 0:01:01]} Nfd7 {[%emt 0:01:26]} 12. Rg1 {[%emt 0:01:23]} g5 {[%emt 0:19:02]} 13. Be2 {[%emt 0:10:40]} Re8 {[%emt 0:03:12]} 14. h4 {[%emt 0:04:37]} gxh4 {[%emt 0:10:06]} 15. g5 {[%emt 0:01:22]} Kh7 {[%emt 0:01:10]} 16. Nf3 {[%emt 0:01:50]} h3 {[%emt 0:03:40]} 17. Bf1 {[%emt 0:06:01]} Nf8 {[%emt 0:04:00]} 18. Nh2 {[%emt 0:05:13]} Ng6 {[%emt 0:12:58]} 19. Qh5 {[%emt 0:08:38]} Nf4 {[%emt 0:01:43]} 20. Bxf4 {[%emt 0:01:02]} exf4 {[%emt 0:00:04]} 21. gxh6 {[%emt 0:00:27]} Bxc3+ {[%emt 0:01:44]} 22. bxc3 {[%emt 0:00:02]} Qf6 {[%emt 0:05:03]} 23. Rc1 {[%emt 0:00:30]} Nxe4 {[%emt 0:01:03]} 24. Bd3 {[%emt 0:03:44]} Bf5 {[%emt 0:03:30]} 25. Ng4 {[%emt 0:01:01]} Nxc3+ {[%emt 0:02:32]} 26. Kd2 {[%emt 0:02:16]} Ne4+ {[%emt 0:00:51]} 27. Ke1 {[%emt 0:01:42]} Nc3+ {[%emt 0:04:04]} 28. Kd2 {[%emt 0:00:02]} Ne4+ {[%emt 0:00:37]} 29. Ke1 {[%emt 0:00:02]} Nxf2+ {[%emt 0:02:35]} 30. Kxf2 {[%emt 0:42:44]} Qd4+ {[%emt 0:00:30] Kf3Qxd3+ [%clk 0:00:00] Kxf4 [%clk 0:00:00]} 1/2-1/2

[Event "22nd Hogeschool Zeeland 2018"]
[Site "Vlissingen"]
[Date "2018.08.05"]
[Round "3"]
[White "Miciano, John Marvin"]
[Black "Stange, Sven"]
[Result "1-0"]
[ECO "A07"]
[WhiteElo "2381"]
[BlackElo "2161"]
[Annotator "NA"]
[PlyCount "79"]
[EventDate "2018.08.04"]
[EventType "swiss"]
[EventCountry "NED"]
[SourceTitle "playchess.com"]
[Source "ChessBase"]
[SourceQuality "1"]
[TimeControl "40/5400+30:1800+30"]

1. g3 {[%emt 0:00:00]} Nf6 {[%emt 0:00:11]} 2. Bg2 {[%emt 0:00:15]} d5 {[%emt 0:00:09]} 3. Nf3 {[%emt 0:00:26]} e6 {[%emt 0:01:01]} 4. O-O {[%emt 0:00:29]} Be7 {[%emt 0:00:08]} 5. d3 {[%emt 0:00:23]} O-O {[%emt 0:00:47]} 6. Nbd2 {[%emt 0:00:15]} Nc6 {[%emt 0:05:58]} 7. c3 {[%emt 0:01:06] A07: Réti Opening: New York and Capablanca Systems} (7. d4 a5 8. c3 b6 9. Re1 Bb7 10. e4 dxe4 11. Nxe4 Nxe4 12. Rxe4 Bf6 13. Re1 Ne7 14. Qc2 Bd5 {1-0 (42) Nakamura,H (2780)-Topalov,V (2749) Saint Louis 2017}) 7... e5 {[%emt 0:05:25]} 8. b4 {[%emt 0:02:49]} a6 $146 {[%emt 0:01:34]} ({Predecessor:} 8... Bg4 9. b5 Na5 10. Nxe5 Be6 11. h3 Bd6 12. Ndf3 Nd7 13. Nxd7 Qxd7 14. Kh2 Qxb5 {½-½ (48) Mourgues,J (1816)-Le Pen,S (1380) Hennebont 2006}) 9. Qc2 {[%emt 0:01:07]} h6 {[%emt 0:03:17]} 10. a3 {[%emt 0:00:27]} Re8 {[%emt 0:02:46]} 11. e4 {[%emt 0:01:50]} dxe4 {[%emt 0:01:20]} 12. dxe4 {[%emt 0:00:21]} Bg4 {[%emt 0:02:55]} 13. Nc4 {[%emt 1:27:02]} Bf8 {[%emt 0:01:24]} 14. Ne3 {[%emt 0:00:00]} Bxf3 {[%emt 0:01:33]} 15. Bxf3 {[%emt 0:00:00]} g6 {[%emt 0:01:23]} 16. Be2 {[%emt 0:00:00]} Qe7 {[%emt 0:05:34]} 17. Bc4 {[%emt 0:00:00]} Nd8 {[%emt 0:04:33]} 18. Nd5 {[%emt 0:00:00]} Nxd5 {[%emt 0:01:51]} 19. Bxd5 {[%emt 0:00:00]} c6 {[%emt 0:00:54]} 20. Bb3 {[%emt 0:00:00]} a5 {[%emt 0:03:54]} 21. Be3 {[%emt 0:00:00]} axb4 {[%emt 0:02:43]} 22. axb4 {[%emt 0:04:30]} Ne6 {[%emt 0:01:51]} 23. Qe2 {[%emt 0:00:00]} Bg7 {[%emt 0:04:19]} 24. Bb6 {[%emt 0:00:00]} Kh7 {[%emt 0:07:55]} 25. Bc4 {[%emt 0:00:00]} Rxa1 {[%emt 0:07:51]} 26. Rxa1 {[%emt 0:00:00]} Qg5 {[%emt 0:01:00]} 27. h4 {[%emt 0:00:00]} Qe7 {[%emt 0:06:20]} 28. Rd1 {[%emt 0:00:00]} Bf6 {[%emt 0:06:58]} 29. Rd3 {[%emt 0:00:00]} Ra8 {[%emt 0:05:38]} 30. Qd1 {[%emt 0:00:00]} Kg7 {[%emt 0:04:09]} 31. Kg2 {[%emt 0:00:00]} Nf8 {[%emt 0:03:58]} 32. h5 {[%emt 0:00:00]} g5 {[%emt 0:02:02]} 33. Qg4 {[%emt 0:00:00]} Qe8 {[%emt 0:01:33]} 34. Rd6 {[%emt 0:00:00]} Bd8 {[%emt 0:02:24]} (34... Be7 $16 35. Rd3 Bd8) 35. Qf5 {[%emt 0:00:00]} ({And not} 35. Rxd8 Rxd8 36. Bxd8 Qxd8 $11) 35... Bxb6 $4 {[%emt 0:01:37]} (35... Be7 $16 36. Rd3 f6) 36. Qf6+ {[%emt 0:00:00]} Kg8 {[%emt 0:00:08]} 37. Qxh6 {[%emt 0:00:00]} Bd8 {[%emt 0:00:55]} 38. Rg6+ {[%emt 0:00:00]} Nxg6 {[%emt 0:00:07]} 39. hxg6 {[%emt 0:00:00]} Qf8 {[%emt 0:00:51]} 40. Qh7# {[%emt 0:00:00] Be7 [%clk 0:00:32]} 1-0

[Event "22nd Hogeschool Zeeland 2018"]
[Site "Vlissingen"]
[Date "2018.08.05"]
[Round "3"]
[White "Ravi, Teja S"]
[Black "Elgersma, Simon"]
[Result "1-0"]
[ECO "D00"]
[WhiteElo "2374"]
[BlackElo "2136"]
[Annotator "NA"]
[PlyCount "59"]
[EventDate "2018.08.04"]
[EventType "swiss"]
[EventCountry "NED"]
[SourceTitle "playchess.com"]
[Source "ChessBase"]
[SourceQuality "1"]
[TimeControl "40/5400+30:1800+30"]

1. d4 {[%emt 0:00:00]} Nf6 {[%emt 0:05:26]} 2. Nf3 {[%emt 0:00:00]} g6 {[%emt 0:01:30]} 3. Nc3 {[%emt 0:00:00]} d5 {[%emt 0:00:49]} 4. Bf4 {[%emt 0:00:00]} Bg7 {[%emt 0:00:10]} 5. e3 {[%emt 0:00:01]} O-O {[%emt 0:01:16]} 6. Be2 {[%emt 0:00:05]} c5 {[%emt 0:04:58]} 7. dxc5 {[%emt 0:00:27]} Qa5 {[%emt 0:05:22]} 8. Nd2 {[%emt 0:00:09]} Qxc5 {[%emt 0:04:18]} 9. Nb3 {[%emt 0:00:06]} Qb6 {[%emt 0:06:39]} 10. Nb5 {[%emt 0:00:07]} Na6 {[%emt 0:04:36]} 11. a4 {[%emt 0:01:09]} Bd7 {[%emt 0:04:45]} 12. Be5 {[%emt 0:01:22]} Bxb5 {[%emt 0:05:53]} 13. axb5 {[%emt 0:12:34]} Nc7 {[%emt 0:02:28]} 14. Bd4 {[%emt 0:04:13]} Qd6 {[%emt 0:04:12]} 15. O-O {[%emt 0:01:32]} b6 {[%emt 0:04:23]} 16. Ra4 {[%emt 0:01:05]} Qd7 {[%emt 0:08:11]} 17. Qa1 {[%emt 0:00:51]} Nxb5 {[%emt 0:02:22]} 18. Bxb6 {[%emt 0:04:59]} Qb7 {[%emt 0:00:31]} 19. Bc5 {[%emt 0:06:07]} Ne4 {[%emt 0:08:01]} 20. Bxe7 {[%emt 0:04:05]} Nbc3 {[%emt 0:02:18]} 21. Bxf8 {[%emt 0:07:47]} Nxe2+ {[%emt 0:00:18]} 22. Kh1 {[%emt 0:00:04]} Rxf8 {[%emt 0:05:24]} 23. Qe1 {[%emt 0:07:31]} Qb5 {[%emt 0:00:55]} 24. Rb4 {[%emt 0:00:14]} Qa6 {[%emt 0:00:42]} 25. c4 {[%emt 0:03:11]} Qd6 {[%emt 0:06:02]} 26. cxd5 {[%emt 0:02:53]} Bxb2 {[%emt 0:04:16]} 27. Rxe4 {[%emt 0:00:47]} Qxd5 {[%emt 0:02:41]} 28. Qxe2 {[%emt 0:00:19]} Qxe4 {[%emt 0:00:20]} 29. Qxb2 {[%emt 0:00:06]} Qd3 {[%emt 0:00:33]} 30. Qb1 {[%emt 0:00:13]} 1-0

[Event "22nd Hogeschool Zeeland 2018"]
[Site "Vlissingen"]
[Date "2018.08.05"]
[Round "3"]
[White "Mehar, Chinna Reddy C H"]
[Black "Oosting, Robert"]
[Result "1-0"]
[ECO "B53"]
[WhiteElo "2345"]
[BlackElo "1958"]
[Annotator "NA"]
[PlyCount "51"]
[EventDate "2018.08.04"]
[EventType "swiss"]
[EventCountry "NED"]
[SourceTitle "playchess.com"]
[Source "ChessBase"]
[SourceQuality "1"]
[TimeControl "40/5400+30:1800+30"]

1. e4 {[%emt 0:00:34]} c5 {[%emt 0:00:07]} 2. Nf3 {[%emt 0:00:08]} d6 {[%emt 0:00:22]} 3. d4 {[%emt 0:00:24]} cxd4 {[%emt 0:00:07]} 4. Qxd4 {[%emt 0:00:20]} Nc6 {[%emt 0:01:21]} 5. Bb5 {[%emt 0:00:12]} Bd7 {[%emt 0:00:19]} 6. Qd3 {[%emt 0:00:26]} Nf6 {[%emt 0:01:03]} 7. c4 {[%emt 0:00:21]} g6 {[%emt 0:03:18]} 8. Nc3 {[%emt 0:00:33]} Bg7 {[%emt 0:00:40]} 9. O-O {[%emt 0:00:09]} O-O {[%emt 0:00:42]} 10. h3 {[%emt 0:00:13]} a6 {[%emt 0:10:26]} 11. Bxc6 {[%emt 0:00:38]} Bxc6 {[%emt 0:00:34]} 12. Nd4 {[%emt 0:00:12]} Nd7 {[%emt 0:00:51]} 13. Be3 {[%emt 0:01:12]} Nc5 {[%emt 0:05:34]} 14. Qc2 {[%emt 0:00:08]} Bd7 {[%emt 0:00:50]} 15. Rfd1 {[%emt 0:01:28]} Rc8 {[%emt 0:04:57]} 16. Rac1 {[%emt 0:03:51]} Qa5 {[%emt 0:10:43]} 17. b4 {[%emt 0:12:48]} Qxb4 {[%emt 0:03:17]} 18. Nd5 {[%emt 0:00:06]} Qa3 {[%emt 0:02:32]} 19. Nxe7+ {[%emt 0:00:09]} Kh8 {[%emt 0:00:03]} 20. Nxc8 {[%emt 0:00:33]} Ba4 {[%emt 0:01:06]} 21. Nb3 {[%emt 0:00:51]} Nxb3 {[%emt 0:04:07]} 22. axb3 {[%emt 0:00:30]} Bxb3 {[%emt 0:00:35]} 23. Qd3 {[%emt 0:01:10]} Rxc8 {[%emt 0:00:52]} 24. Rb1 {[%emt 0:00:25]} Bb2 {[%emt 0:00:53]} 25. Rxb2 {[%emt 0:00:08]} Qxb2 {[%emt 0:00:05]} 26. Bd4+ {[%emt 1:15:31]} 1-0